[Event "Titled Tuesday Blitz November 29 Early 2022"]
[White "Danielyan, Vahe"]
[Black "Deev, Andrei"]
[WhiteFideId "13304828"]
[BlackFideId "4102690"]
[WhiteElo "2423"]
[BlackElo "2289"]
[Result "1-0"]
[Round "01"]
[TimeControl "180+1"]
[Date "2022.11.30"]
[WhiteClock "0:00:54"]
[BlackClock "0:00:02"]

1. e4 {[%clk 0:02:57]}  d6 {[%clk 0:03:00]} 2. d4 {[%clk 0:02:57]}  Nf6 {[%clk 0:03:00]} 3. Nc3 {[%clk 0:02:58]}  c6 {[%clk 0:02:58]} 4. g3 {[%clk 0:02:57]}  b5 {[%clk 0:02:57]} 5. a3 {[%clk 0:02:54]}  e6 {[%clk 0:02:56]} 6. Bg2 {[%clk 0:02:55]}  a6 {[%clk 0:02:54]} 7. Nge2 {[%clk 0:02:55]}  Be7 {[%clk 0:02:53]} 8. O-O {[%clk 0:02:56]}  O-O {[%clk 0:02:53]} 9. h3 {[%clk 0:02:56]}  Bb7 {[%clk 0:02:40]} 10. Be3 {[%clk 0:02:55]}  Nbd7 {[%clk 0:02:37]} 11. f4 {[%clk 0:02:54]}  e5 {[%clk 0:02:29]} 12. Kh2 {[%clk 0:02:51]}  Qc7 {[%clk 0:02:08]} 13. Rc1 {[%clk 0:02:31]}  a5 {[%clk 0:01:57]} 14. Nb1 {[%clk 0:02:28]}  Rad8 {[%clk 0:01:46]} 15. Nd2 {[%clk 0:02:27]}  Rfe8 {[%clk 0:01:44]} 16. c4 {[%clk 0:02:26]}  b4 {[%clk 0:01:29]} 17. d5 {[%clk 0:02:25]}  Bf8 {[%clk 0:01:19]} 18. f5 {[%clk 0:02:22]}  Nc5 {[%clk 0:01:07]} 19. g4 {[%clk 0:02:17]}  Nd3 {[%clk 0:01:03]} 20. g5 {[%clk 0:02:10]}  Nh5 {[%clk 0:01:00]} 21. Rb1 {[%clk 0:02:04]}  cxd5 {[%clk 0:00:51]} 22. cxd5 {[%clk 0:02:05]}  Nhf4 {[%clk 0:00:34]} 23. Bf3 {[%clk 0:02:05]}  Nxe2 {[%clk 0:00:20]} 24. Qxe2 {[%clk 0:02:01]}  Ba6 {[%clk 0:00:19]} 25. Rg1 {[%clk 0:01:43]}  Qb7 {[%clk 0:00:19]} 26. Qg2 {[%clk 0:01:42]}  g6 {[%clk 0:00:18]} 27. axb4 {[%clk 0:01:39]}  axb4 {[%clk 0:00:16]} 28. f6 {[%clk 0:01:37]}  b3 {[%clk 0:00:15]} 29. Ra1 {[%clk 0:01:36]}  Rc8 {[%clk 0:00:14]} 30. Rxa6 {[%clk 0:01:36]}  Qxa6 {[%clk 0:00:13]} 31. Be2 {[%clk 0:01:37]}  Rc2 {[%clk 0:00:13]} 32. Qf1 {[%clk 0:01:29]}  Rxb2 {[%clk 0:00:06]} 33. Bxd3 {[%clk 0:01:29]}  Qa2 {[%clk 0:00:05]} 34. Rg2 {[%clk 0:01:28]}  Rc8 {[%clk 0:00:03]} 35. Qf3 {[%clk 0:01:02]}  Rc3 {[%clk 0:00:03]} 36. Bb5 {[%clk 0:00:55]}  Qa5 {[%clk 0:00:02]} 37. Be8 {[%clk 0:00:54]} 1-0


[Site "https://www.chess.com"]

[Event "Titled Tuesday Blitz November 29 Early 2022"]
[White "Dardha, Daniel"]
[Black "Amin-Erdene, Bayanmunkh"]
[WhiteFideId "240990"]
[BlackFideId "4903161"]
[WhiteElo "2528"]
[BlackElo "1447"]
[Result "1-0"]
[Round "01"]
[TimeControl "180+1"]
[Date "2022.11.30"]
[WhiteClock "0:00:32"]
[BlackClock "0:00:01"]

1. e4 {[%clk 0:02:58]}  d6 {[%clk 0:02:58]} 2. d4 {[%clk 0:02:56]}  Nf6 {[%clk 0:02:58]} 3. f3 {[%clk 0:02:53]}  g6 {[%clk 0:02:57]} 4. c4 {[%clk 0:02:53]}  Bg7 {[%clk 0:02:54]} 5. Nc3 {[%clk 0:02:53]}  O-O {[%clk 0:02:54]} 6. Be3 {[%clk 0:02:53]}  a6 {[%clk 0:02:54]} 7. Qd2 {[%clk 0:02:51]}  Nc6 {[%clk 0:02:55]} 8. Rc1 {[%clk 0:02:49]}  e5 {[%clk 0:02:47]} 9. Nge2 {[%clk 0:02:48]}  Nd7 {[%clk 0:02:29]} 10. d5 {[%clk 0:02:29]}  Ne7 {[%clk 0:02:29]} 11. g4 {[%clk 0:02:30]}  f5 {[%clk 0:02:22]} 12. gxf5 {[%clk 0:02:31]}  gxf5 {[%clk 0:02:22]} 13. Rg1 {[%clk 0:02:24]}  Ng6 {[%clk 0:02:08]} 14. Bg5 {[%clk 0:01:53]}  Qe8 {[%clk 0:02:03]} 15. Bh3 {[%clk 0:01:47]}  f4 {[%clk 0:01:33]} 16. Kd1 {[%clk 0:01:37]}  h6 {[%clk 0:01:31]} 17. Bd8 {[%clk 0:01:34]}  Qxd8 {[%clk 0:01:29]} 18. Rxg6 {[%clk 0:01:33]}  Qe8 {[%clk 0:01:20]} 19. Rg2 {[%clk 0:01:24]}  Nc5 {[%clk 0:01:18]} 20. Bxc8 {[%clk 0:01:23]}  Rxc8 {[%clk 0:01:19]} 21. Kc2 {[%clk 0:01:22]}  Kh7 {[%clk 0:01:17]} 22. Rcg1 {[%clk 0:01:22]}  Rg8 {[%clk 0:01:16]} 23. Nc1 {[%clk 0:01:15]}  b5 {[%clk 0:01:15]} 24. Nb3 {[%clk 0:00:52]}  Na4 {[%clk 0:00:59]} 25. Nxa4 {[%clk 0:00:50]}  bxa4 {[%clk 0:01:00]} 26. Na5 {[%clk 0:00:51]}  Rb8 {[%clk 0:00:54]} 27. Nc6 {[%clk 0:00:49]}  Rb6 {[%clk 0:00:53]} 28. Qa5 {[%clk 0:00:48]}  Rxc6 {[%clk 0:00:53]} 29. dxc6 {[%clk 0:00:49]}  Qxc6 {[%clk 0:00:53]} 30. Qd5 {[%clk 0:00:49]}  Qe8 {[%clk 0:00:29]} 31. a3 {[%clk 0:00:43]}  Qh5 {[%clk 0:00:28]} 32. Kb1 {[%clk 0:00:39]}  Qxf3 {[%clk 0:00:23]} 33. Qf7 {[%clk 0:00:38]}  Qxe4+ {[%clk 0:00:22]} 34. Ka1 {[%clk 0:00:36]}  Qxg2 {[%clk 0:00:03]} 35. Rxg2 {[%clk 0:00:37]}  f3 {[%clk 0:00:02]} 36. Qxf3 {[%clk 0:00:35]}  Kh8 {[%clk 0:00:01]} 37. Qf5 {[%clk 0:00:32]} 1-0


[Site "https://www.chess.com"]

[Event "Titled Tuesday Blitz November 29 Early 2022"]
[White "Decuigniere, Tom"]
[Black "Kuchava, Ana"]
[WhiteFideId "26093820"]
[BlackFideId "13605348"]
[WhiteElo "2252"]
[BlackElo "2001"]
[Result "1-0"]
[Round "01"]
[TimeControl "180+1"]
[Date "2022.11.30"]
[WhiteClock "0:00:50"]
[BlackClock "0:00:08"]

1. c4 {[%clk 0:02:55]}  e6 {[%clk 0:02:59]} 2. d4 {[%clk 0:02:53]}  d5 {[%clk 0:02:58]} 3. Nc3 {[%clk 0:02:54]}  Be7 {[%clk 0:02:53]} 4. cxd5 {[%clk 0:02:52]}  exd5 {[%clk 0:02:52]} 5. Bf4 {[%clk 0:02:51]}  c6 {[%clk 0:02:52]} 6. e3 {[%clk 0:02:50]}  Bf5 {[%clk 0:02:51]} 7. g4 {[%clk 0:02:49]}  Bg6 {[%clk 0:02:35]} 8. Bg3 {[%clk 0:02:26]}  h5 {[%clk 0:02:16]} 9. gxh5 {[%clk 0:02:15]}  Bxh5 {[%clk 0:02:15]} 10. Be2 {[%clk 0:02:15]}  Bxe2 {[%clk 0:02:05]} 11. Ngxe2 {[%clk 0:02:16]}  Nf6 {[%clk 0:02:04]} 12. Qd3 {[%clk 0:02:13]}  Nbd7 {[%clk 0:01:56]} 13. O-O-O {[%clk 0:02:11]}  Nb6 {[%clk 0:01:55]} 14. Kb1 {[%clk 0:02:02]}  Bd6 {[%clk 0:01:47]} 15. f3 {[%clk 0:01:50]}  Qd7 {[%clk 0:01:31]} 16. e4 {[%clk 0:01:47]}  dxe4 {[%clk 0:01:27]} 17. fxe4 {[%clk 0:01:48]}  Bxg3 {[%clk 0:01:26]} 18. Nxg3 {[%clk 0:01:40]}  O-O-O {[%clk 0:01:24]} 19. a4 {[%clk 0:01:36]}  Ng4 {[%clk 0:01:19]} 20. Qe2 {[%clk 0:01:28]}  Qe7 {[%clk 0:01:07]} 21. a5 {[%clk 0:01:26]}  Nd7 {[%clk 0:01:05]} 22. Qxg4 {[%clk 0:01:26]}  Kb8 {[%clk 0:00:56]} 23. Nf5 {[%clk 0:01:24]}  Qf6 {[%clk 0:00:53]} 24. e5 {[%clk 0:01:22]}  Qe6 {[%clk 0:00:51]} 25. h3 {[%clk 0:01:15]}  g6 {[%clk 0:00:49]} 26. Nd6 {[%clk 0:01:11]}  Qxg4 {[%clk 0:00:33]} 27. hxg4 {[%clk 0:01:12]}  Rxh1 {[%clk 0:00:34]} 28. Rxh1 {[%clk 0:01:11]}  Nf8 {[%clk 0:00:29]} 29. Rh8 {[%clk 0:01:08]}  Ne6 {[%clk 0:00:24]} 30. Rxd8+ {[%clk 0:01:05]}  Nxd8 {[%clk 0:00:25]} 31. Kc2 {[%clk 0:01:03]}  Ne6 {[%clk 0:00:25]} 32. Kd3 {[%clk 0:01:03]}  Ng5 {[%clk 0:00:22]} 33. Nce4 {[%clk 0:01:02]}  Ne6 {[%clk 0:00:19]} 34. Nxf7 {[%clk 0:01:02]}  Nf4+ {[%clk 0:00:19]} 35. Ke3 {[%clk 0:00:57]}  Nd5+ {[%clk 0:00:20]} 36. Kf3 {[%clk 0:00:57]}  Ne7 {[%clk 0:00:19]} 37. Nc5 {[%clk 0:00:54]}  b6 {[%clk 0:00:15]} 38. axb6 {[%clk 0:00:53]}  axb6 {[%clk 0:00:16]} 39. Nd7+ {[%clk 0:00:53]}  Kc7 {[%clk 0:00:15]} 40. Nf8 {[%clk 0:00:53]}  c5 {[%clk 0:00:11]} 41. dxc5 {[%clk 0:00:53]}  bxc5 {[%clk 0:00:12]} 42. Ke4 {[%clk 0:00:52]}  Kc6 {[%clk 0:00:10]} 43. Nh8 {[%clk 0:00:51]}  g5 {[%clk 0:00:10]} 44. Nf7 {[%clk 0:00:51]}  Nd5 {[%clk 0:00:09]} 45. Nd8+ {[%clk 0:00:47]}  Kc7 {[%clk 0:00:07]} 46. Kxd5 {[%clk 0:00:48]}  Kxd8 {[%clk 0:00:07]} 47. Ne6+ {[%clk 0:00:49]}  Ke7 {[%clk 0:00:08]} 48. Nxg5 {[%clk 0:00:50]}  Kd7 {[%clk 0:00:08]} 49. e6+ {[%clk 0:00:50]} 1-0


[Site "https://www.chess.com"]

[Event "Titled Tuesday Blitz November 29 Early 2022"]
[White "Delorme, Alban"]
[Black "Ambartsumova, Karina"]
[WhiteFideId "623636"]
[BlackFideId "4166299"]
[WhiteElo "2197"]
[BlackElo "2319"]
[Result "1-0"]
[Round "01"]
[TimeControl "180+1"]
[Date "2022.11.30"]
[WhiteClock "0:01:15"]
[BlackClock "0:00:06"]

1. d4 {[%clk 0:02:59]}  Nf6 {[%clk 0:02:59]} 2. Nf3 {[%clk 0:02:59]}  g6 {[%clk 0:02:58]} 3. g3 {[%clk 0:02:54]}  Bg7 {[%clk 0:02:58]} 4. Bg2 {[%clk 0:02:55]}  O-O {[%clk 0:02:58]} 5. O-O {[%clk 0:02:56]}  d6 {[%clk 0:02:59]} 6. a4 {[%clk 0:02:56]}  a5 {[%clk 0:02:55]} 7. Re1 {[%clk 0:02:56]}  Nbd7 {[%clk 0:02:53]} 8. e4 {[%clk 0:02:55]}  e5 {[%clk 0:02:52]} 9. Nc3 {[%clk 0:02:53]}  Re8 {[%clk 0:02:49]} 10. h3 {[%clk 0:02:38]}  c6 {[%clk 0:02:48]} 11. Be3 {[%clk 0:02:38]}  Qc7 {[%clk 0:02:47]} 12. Qd2 {[%clk 0:02:36]}  exd4 {[%clk 0:02:40]} 13. Nxd4 {[%clk 0:02:36]}  Nc5 {[%clk 0:02:36]} 14. Bh6 {[%clk 0:02:34]}  Bh8 {[%clk 0:02:30]} 15. Rad1 {[%clk 0:02:34]}  Be6 {[%clk 0:02:18]} 16. Bf4 {[%clk 0:02:28]}  Rad8 {[%clk 0:02:14]} 17. Nxe6 {[%clk 0:02:22]}  Nxe6 {[%clk 0:02:05]} 18. Bxd6 {[%clk 0:02:20]}  Qb6 {[%clk 0:02:02]} 19. e5 {[%clk 0:02:18]}  Nd7 {[%clk 0:01:52]} 20. Qc1 {[%clk 0:02:18]}  Ndc5 {[%clk 0:01:33]} 21. Kh2 {[%clk 0:02:15]}  Na6 {[%clk 0:01:04]} 22. f4 {[%clk 0:02:14]}  Ng7 {[%clk 0:01:01]} 23. Ne4 {[%clk 0:02:11]}  Nf5 {[%clk 0:01:01]} 24. Re2 {[%clk 0:02:06]}  Re6 {[%clk 0:00:51]} 25. g4 {[%clk 0:02:02]}  Nxd6 {[%clk 0:00:50]} 26. Red2 {[%clk 0:01:53]}  f6 {[%clk 0:00:26]} 27. Rxd6 {[%clk 0:01:51]}  Rexd6 {[%clk 0:00:25]} 28. exd6 {[%clk 0:01:47]}  f5 {[%clk 0:00:24]} 29. Ng5 {[%clk 0:01:45]}  Qb4 {[%clk 0:00:24]} 30. c3 {[%clk 0:01:42]}  Qxa4 {[%clk 0:00:21]} 31. Qd2 {[%clk 0:01:30]}  Nc5 {[%clk 0:00:20]} 32. b4 {[%clk 0:01:20]}  axb4 {[%clk 0:00:20]} 33. cxb4 {[%clk 0:01:21]}  Ne4 {[%clk 0:00:19]} 34. Bxe4 {[%clk 0:01:20]}  fxe4 {[%clk 0:00:20]} 35. d7 {[%clk 0:01:20]}  Qb3 {[%clk 0:00:17]} 36. Qd6 {[%clk 0:01:17]}  e3 {[%clk 0:00:07]} 37. Qe7 {[%clk 0:01:17]}  e2 {[%clk 0:00:06]} 38. Qxd8+ {[%clk 0:01:16]}  Kg7 {[%clk 0:00:06]} 39. Qe7+ {[%clk 0:01:15]}  Kh6 {[%clk 0:00:06]} 40. Qxh7# {[%clk 0:01:15]} 1-0


[Site "https://www.chess.com"]

[Event "Titled Tuesday Blitz November 29 Early 2022"]
[White "Dilanyan, Grigor"]
[Black "De Souza, Cristiano Gomes"]
[WhiteFideId "13303570"]
[BlackFideId "2151758"]
[WhiteElo "2229"]
[BlackElo "2068"]
[Result "1-0"]
[Round "01"]
[TimeControl "180+1"]
[Date "2022.11.30"]
[WhiteClock "0:01:45"]
[BlackClock "0:00:19"]

1. e4 {[%clk 0:02:58]}  c5 {[%clk 0:02:59]} 2. Nf3 {[%clk 0:02:58]}  d6 {[%clk 0:02:59]} 3. Bb5+ {[%clk 0:02:57]}  Bd7 {[%clk 0:02:58]} 4. Bxd7+ {[%clk 0:02:57]}  Qxd7 {[%clk 0:02:58]} 5. O-O {[%clk 0:02:57]}  Nc6 {[%clk 0:02:57]} 6. c3 {[%clk 0:02:57]}  g6 {[%clk 0:02:55]} 7. d4 {[%clk 0:02:57]}  cxd4 {[%clk 0:02:55]} 8. cxd4 {[%clk 0:02:58]}  Bg7 {[%clk 0:02:54]} 9. Nc3 {[%clk 0:02:57]}  e6 {[%clk 0:02:53]} 10. d5 {[%clk 0:02:56]}  Ne5 {[%clk 0:02:48]} 11. Nxe5 {[%clk 0:02:55]}  Bxe5 {[%clk 0:02:47]} 12. f4 {[%clk 0:02:55]}  Bg7 {[%clk 0:02:46]} 13. dxe6 {[%clk 0:02:54]}  fxe6 {[%clk 0:02:45]} 14. f5 {[%clk 0:02:46]}  exf5 {[%clk 0:02:45]} 15. exf5 {[%clk 0:02:46]}  O-O-O {[%clk 0:02:33]} 16. Bg5 {[%clk 0:02:44]}  Rf8 {[%clk 0:02:29]} 17. Nd5 {[%clk 0:02:43]}  Rxf5 {[%clk 0:02:11]} 18. Qc2+ {[%clk 0:02:43]}  Kb8 {[%clk 0:02:08]} 19. Rxf5 {[%clk 0:02:41]}  gxf5 {[%clk 0:02:07]} 20. Re1 {[%clk 0:02:41]}  Be5 {[%clk 0:01:56]} 21. Rc1 {[%clk 0:02:38]}  h6 {[%clk 0:01:48]} 22. Bh4 {[%clk 0:02:35]}  Rh7 {[%clk 0:01:43]} 23. Qb3 {[%clk 0:02:17]}  Qe6 {[%clk 0:01:18]} 24. Ne7 {[%clk 0:02:07]}  Rxe7 {[%clk 0:01:08]} 25. Bxe7 {[%clk 0:02:06]}  Qxb3 {[%clk 0:01:07]} 26. Bxd6+ {[%clk 0:02:05]}  Bxd6 {[%clk 0:01:07]} 27. axb3 {[%clk 0:02:06]}  Ne7 {[%clk 0:01:07]} 28. g3 {[%clk 0:02:05]}  f4 {[%clk 0:01:06]} 29. g4 {[%clk 0:02:05]}  Ng6 {[%clk 0:01:03]} 30. Kf2 {[%clk 0:02:05]}  Ne5 {[%clk 0:01:01]} 31. Rg1 {[%clk 0:02:05]}  Nd3+ {[%clk 0:01:00]} 32. Kf3 {[%clk 0:02:05]}  Nxb2 {[%clk 0:01:00]} 33. Ke4 {[%clk 0:02:01]}  Kc7 {[%clk 0:00:52]} 34. Rb1 {[%clk 0:01:59]}  Ba3 {[%clk 0:00:49]} 35. h4 {[%clk 0:01:59]}  a5 {[%clk 0:00:44]} 36. g5 {[%clk 0:01:57]}  hxg5 {[%clk 0:00:43]} 37. hxg5 {[%clk 0:01:58]}  a4 {[%clk 0:00:43]} 38. g6 {[%clk 0:01:57]}  axb3 {[%clk 0:00:32]} 39. g7 {[%clk 0:01:56]}  Nc4 {[%clk 0:00:32]} 40. Rd1 {[%clk 0:01:47]}  Ne3 {[%clk 0:00:19]} 41. Rg1 {[%clk 0:01:45]} 1-0


[Site "https://www.chess.com"]

[Event "Titled Tuesday Blitz November 29 Early 2022"]
[White "Domingo Nunez, Ruben"]
[Black "Schut, Han"]
[WhiteFideId "22245570"]
[BlackFideId "1005561"]
[WhiteElo "2406"]
[BlackElo "2024"]
[Result "0-1"]
[Round "01"]
[TimeControl "180+1"]
[Date "2022.11.30"]
[WhiteClock "0:01:16"]
[BlackClock "0:01:37"]

1. c4 {[%clk 0:02:59]}  Nf6 {[%clk 0:02:59]} 2. Nc3 {[%clk 0:02:58]}  d5 {[%clk 0:02:59]} 3. cxd5 {[%clk 0:02:58]}  Nxd5 {[%clk 0:03:00]} 4. Nf3 {[%clk 0:02:58]}  c5 {[%clk 0:03:00]} 5. e3 {[%clk 0:02:57]}  Nc6 {[%clk 0:03:00]} 6. Bb5 {[%clk 0:02:57]}  Nb4 {[%clk 0:02:48]} 7. O-O {[%clk 0:02:39]}  a6 {[%clk 0:02:46]} 8. Be2 {[%clk 0:02:39]}  Nd3 {[%clk 0:02:41]} 9. a3 {[%clk 0:02:36]}  e5 {[%clk 0:02:28]} 10. Qc2 {[%clk 0:02:36]}  Bf5 {[%clk 0:02:13]} 11. e4 {[%clk 0:02:27]}  Nxc1 {[%clk 0:02:14]} 12. Raxc1 {[%clk 0:02:25]}  Bg4 {[%clk 0:02:10]} 13. Nd5 {[%clk 0:02:21]}  Bxf3 {[%clk 0:02:00]} 14. Bxf3 {[%clk 0:02:21]}  Nd4 {[%clk 0:02:01]} 15. Qd3 {[%clk 0:02:22]}  Bd6 {[%clk 0:01:57]} 16. Bg4 {[%clk 0:02:11]}  O-O {[%clk 0:01:53]} 17. Kh1 {[%clk 0:02:11]}  Qh4 {[%clk 0:01:43]} 18. f3 {[%clk 0:01:18]}  f5 {[%clk 0:01:40]} 19. exf5 {[%clk 0:01:16]}  e4 {[%clk 0:01:37]} 0-1


[Site "https://www.chess.com"]

[Event "Titled Tuesday Blitz November 29 Early 2022"]
[White "Ehlvest, Jaan"]
[Black "Sargissyan, Sargis"]
[WhiteFideId "4500016"]
[BlackFideId "13303210"]
[WhiteElo "2430"]
[BlackElo "2109"]
[Result "1-0"]
[Round "01"]
[TimeControl "180+1"]
[Date "2022.11.30"]
[WhiteClock "0:01:56"]
[BlackClock "0:00:15"]

1. e4 {[%clk 0:02:59]}  e5 {[%clk 0:02:59]} 2. Nf3 {[%clk 0:02:57]}  Nc6 {[%clk 0:03:00]} 3. Nc3 {[%clk 0:02:56]}  Nf6 {[%clk 0:03:00]} 4. Bb5 {[%clk 0:02:56]}  Bb4 {[%clk 0:02:55]} 5. O-O {[%clk 0:02:55]}  O-O {[%clk 0:02:51]} 6. Bxc6 {[%clk 0:02:55]}  dxc6 {[%clk 0:02:50]} 7. d3 {[%clk 0:02:55]}  Nd7 {[%clk 0:02:42]} 8. Ne2 {[%clk 0:02:54]}  Bd6 {[%clk 0:02:27]} 9. Kh1 {[%clk 0:02:54]}  Nc5 {[%clk 0:02:27]} 10. Rg1 {[%clk 0:02:52]}  Bg4 {[%clk 0:02:12]} 11. Ng3 {[%clk 0:02:50]}  Ne6 {[%clk 0:02:09]} 12. h3 {[%clk 0:02:49]}  Bxf3 {[%clk 0:02:09]} 13. Qxf3 {[%clk 0:02:50]}  Nd4 {[%clk 0:02:09]} 14. Qd1 {[%clk 0:02:50]}  f5 {[%clk 0:02:06]} 15. exf5 {[%clk 0:02:49]}  Nxf5 {[%clk 0:02:05]} 16. Nxf5 {[%clk 0:02:46]}  Rxf5 {[%clk 0:02:06]} 17. Be3 {[%clk 0:02:47]}  Qh4 {[%clk 0:01:59]} 18. Qg4 {[%clk 0:02:46]}  Qxg4 {[%clk 0:01:45]} 19. hxg4 {[%clk 0:02:46]}  Rf6 {[%clk 0:01:45]} 20. a4 {[%clk 0:02:46]}  a6 {[%clk 0:01:16]} 21. Rge1 {[%clk 0:02:43]}  Re8 {[%clk 0:01:15]} 22. f3 {[%clk 0:02:43]}  Bb4 {[%clk 0:01:03]} 23. Re2 {[%clk 0:02:42]}  Ba5 {[%clk 0:01:03]} 24. Kg1 {[%clk 0:02:39]}  Kf7 {[%clk 0:01:02]} 25. Rb1 {[%clk 0:02:34]}  Bb6 {[%clk 0:00:52]} 26. Bxb6 {[%clk 0:02:33]}  cxb6 {[%clk 0:00:53]} 27. Rbe1 {[%clk 0:02:32]}  Rfe6 {[%clk 0:00:52]} 28. Re4 {[%clk 0:02:32]}  h6 {[%clk 0:00:51]} 29. Kf2 {[%clk 0:02:32]}  Kf6 {[%clk 0:00:45]} 30. b4 {[%clk 0:02:27]}  Rd8 {[%clk 0:00:46]} 31. Rb1 {[%clk 0:02:24]}  Rd4 {[%clk 0:00:39]} 32. Ke3 {[%clk 0:02:23]}  Rxe4+ {[%clk 0:00:38]} 33. dxe4 {[%clk 0:02:17]}  Rd6 {[%clk 0:00:38]} 34. c3 {[%clk 0:02:15]}  Rd7 {[%clk 0:00:36]} 35. g3 {[%clk 0:02:14]}  g5 {[%clk 0:00:33]} 36. Rh1 {[%clk 0:02:10]}  Kg6 {[%clk 0:00:34]} 37. Rh2 {[%clk 0:02:01]}  Rd8 {[%clk 0:00:33]} 38. Rd2 {[%clk 0:02:00]}  Rxd2 {[%clk 0:00:28]} 39. Kxd2 {[%clk 0:02:00]}  b5 {[%clk 0:00:28]} 40. a5 {[%clk 0:01:57]}  Kf6 {[%clk 0:00:27]} 41. Ke3 {[%clk 0:01:57]}  Ke6 {[%clk 0:00:28]} 42. f4 {[%clk 0:01:57]}  Kd6 {[%clk 0:00:24]} 43. fxe5+ {[%clk 0:01:57]}  Kxe5 {[%clk 0:00:24]} 44. Kd3 {[%clk 0:01:57]}  Kf6 {[%clk 0:00:15]} 45. Kd4 {[%clk 0:01:57]}  Ke6 {[%clk 0:00:16]} 46. e5 {[%clk 0:01:55]}  Kd7 {[%clk 0:00:12]} 47. Kc5 {[%clk 0:01:56]}  Kc7 {[%clk 0:00:13]} 48. e6 {[%clk 0:01:55]}  Kd8 {[%clk 0:00:13]} 49. Kb6 {[%clk 0:01:55]}  Ke7 {[%clk 0:00:14]} 50. Kxb7 {[%clk 0:01:55]}  Kxe6 {[%clk 0:00:15]} 51. Kxa6 {[%clk 0:01:56]}  Kd5 {[%clk 0:00:15]} 52. Kb7 {[%clk 0:01:56]} 1-0


[Site "https://www.chess.com"]

[Event "Titled Tuesday Blitz November 29 Early 2022"]
[White "Estrada Nieto, Julian"]
[Black "Kiseljova, Marya"]
[WhiteFideId "5101018"]
[BlackFideId "4155009"]
[WhiteElo "2221"]
[BlackElo "1907"]
[Result "1-0"]
[Round "01"]
[TimeControl "180+1"]
[Date "2022.11.30"]
[WhiteClock "0:00:34"]
[BlackClock "0:00:11"]

1. e4 {[%clk 0:03:00]}  c5 {[%clk 0:02:58]} 2. Nf3 {[%clk 0:03:01]}  Nc6 {[%clk 0:02:59]} 3. Bb5 {[%clk 0:03:01]}  e5 {[%clk 0:02:58]} 4. O-O {[%clk 0:02:58]}  Bd6 {[%clk 0:02:56]} 5. c3 {[%clk 0:02:57]}  a6 {[%clk 0:02:55]} 6. Ba4 {[%clk 0:02:57]}  b5 {[%clk 0:02:55]} 7. Bc2 {[%clk 0:02:56]}  Nge7 {[%clk 0:02:53]} 8. d4 {[%clk 0:02:55]}  cxd4 {[%clk 0:02:53]} 9. cxd4 {[%clk 0:02:55]}  Nxd4 {[%clk 0:02:30]} 10. Nxd4 {[%clk 0:02:54]}  exd4 {[%clk 0:02:30]} 11. Qxd4 {[%clk 0:02:53]}  Qc7 {[%clk 0:02:28]} 12. Bb3 {[%clk 0:02:14]}  Bxh2+ {[%clk 0:02:26]} 13. Kh1 {[%clk 0:02:13]}  O-O {[%clk 0:02:22]} 14. f4 {[%clk 0:02:03]}  Bg3 {[%clk 0:02:14]} 15. Nc3 {[%clk 0:02:00]}  Qc6 {[%clk 0:01:28]} 16. f5 {[%clk 0:01:50]}  d6 {[%clk 0:00:55]} 17. Bg5 {[%clk 0:01:45]}  Qc7 {[%clk 0:00:44]} 18. f6 {[%clk 0:01:33]}  Nc6 {[%clk 0:00:29]} 19. Qe3 {[%clk 0:01:23]}  Be5 {[%clk 0:00:28]} 20. Nd5 {[%clk 0:01:22]}  Qa7 {[%clk 0:00:20]} 21. fxg7 {[%clk 0:00:59]}  Bxg7 {[%clk 0:00:18]} 22. Qg3 {[%clk 0:00:55]}  Kh8 {[%clk 0:00:17]} 23. Rac1 {[%clk 0:00:48]}  Ne5 {[%clk 0:00:15]} 24. Nf6 {[%clk 0:00:41]}  Bg4 {[%clk 0:00:13]} 25. Qh4 {[%clk 0:00:36]}  Be6 {[%clk 0:00:11]} 26. Qxh7# {[%clk 0:00:34]} 1-0


[Site "https://www.chess.com"]

[Event "Titled Tuesday Blitz November 29 Early 2022"]
[White "Fecker, Noah"]
[Black "Vargas, Mauricio"]
[WhiteFideId "1334263"]
[BlackFideId "4404572"]
[WhiteElo "2291"]
[BlackElo "2025"]
[Result "1-0"]
[Round "01"]
[TimeControl "180+1"]
[Date "2022.11.30"]
[WhiteClock "0:00:54"]
[BlackClock "0:00:02"]

1. d4 {[%clk 0:02:57]}  d5 {[%clk 0:02:59]} 2. c4 {[%clk 0:02:56]}  c6 {[%clk 0:02:59]} 3. Nf3 {[%clk 0:02:55]}  e6 {[%clk 0:02:57]} 4. Nc3 {[%clk 0:02:54]}  dxc4 {[%clk 0:02:56]} 5. a4 {[%clk 0:02:31]}  Bb4 {[%clk 0:02:55]} 6. e3 {[%clk 0:02:30]}  b5 {[%clk 0:02:53]} 7. Bd2 {[%clk 0:02:30]}  Bxc3 {[%clk 0:02:53]} 8. Bxc3 {[%clk 0:02:29]}  a6 {[%clk 0:02:52]} 9. b3 {[%clk 0:02:28]}  cxb3 {[%clk 0:02:44]} 10. axb5 {[%clk 0:02:28]}  cxb5 {[%clk 0:02:38]} 11. Bxb5+ {[%clk 0:02:27]}  Bd7 {[%clk 0:02:33]} 12. Bc4 {[%clk 0:02:21]}  b2 {[%clk 0:02:08]} 13. Bxb2 {[%clk 0:02:21]}  Qb6 {[%clk 0:02:05]} 14. Ba3 {[%clk 0:02:19]}  Ne7 {[%clk 0:01:59]} 15. O-O {[%clk 0:02:16]}  Nbc6 {[%clk 0:01:51]} 16. Bc5 {[%clk 0:02:14]}  Qc7 {[%clk 0:01:43]} 17. Rxa6 {[%clk 0:02:12]}  Rxa6 {[%clk 0:01:42]} 18. Bxa6 {[%clk 0:02:13]}  O-O {[%clk 0:01:40]} 19. Qd3 {[%clk 0:02:10]}  Ra8 {[%clk 0:01:32]} 20. h3 {[%clk 0:02:06]}  h6 {[%clk 0:01:32]} 21. Rc1 {[%clk 0:02:04]}  Nd5 {[%clk 0:01:29]} 22. Bb5 {[%clk 0:01:43]}  Qa5 {[%clk 0:01:27]} 23. Bxc6 {[%clk 0:01:35]}  Bxc6 {[%clk 0:01:26]} 24. Ne5 {[%clk 0:01:35]}  Bb5 {[%clk 0:01:22]} 25. Qe4 {[%clk 0:01:31]}  Be2 {[%clk 0:01:04]} 26. Qc2 {[%clk 0:01:21]}  Bb5 {[%clk 0:00:53]} 27. Kh2 {[%clk 0:01:14]}  f6 {[%clk 0:00:44]} 28. Nc4 {[%clk 0:01:06]}  Qc7+ {[%clk 0:00:39]} 29. Kg1 {[%clk 0:01:02]}  e5 {[%clk 0:00:34]} 30. Qb3 {[%clk 0:00:58]}  Bc6 {[%clk 0:00:28]} 31. Nb6 {[%clk 0:00:58]}  Rb8 {[%clk 0:00:20]} 32. Nxd5 {[%clk 0:00:56]}  Rxb3 {[%clk 0:00:19]} 33. Nxc7 {[%clk 0:00:57]}  exd4 {[%clk 0:00:18]} 34. Bxd4 {[%clk 0:00:58]}  Be4 {[%clk 0:00:15]} 35. Ne6 {[%clk 0:00:56]}  Ra3 {[%clk 0:00:12]} 36. Rc7 {[%clk 0:00:55]}  Ra2 {[%clk 0:00:09]} 37. Rxg7+ {[%clk 0:00:54]}  Kh8 {[%clk 0:00:07]} 38. Bxf6 {[%clk 0:00:55]}  Ra6 {[%clk 0:00:03]} 39. Rg6+ {[%clk 0:00:54]}  Kh7 {[%clk 0:00:02]} 40. Nf8# {[%clk 0:00:54]} 1-0


[Site "https://www.chess.com"]